Cogmind - Beta 16.1 @@@ ROGUE MODE // 2026.03.27 @ 20:38:02 Player: Ez Result: Destroyed by Y-45 Defender with Beam Rifle Performance ------------- Evolutions (1) 500 Regions Visited (2) 400 Robots Destroyed (29) 145 Value Destroyed (777) 777 Prototype IDs (0) 0 Alien Tech Used (0) 0 Bonus (0) 0 TOTAL SCORE: 1822 Bonus ------- None Cogmind --------- Core Integrity 0/400 Matter 6/300 Energy 98/100 System Corruption 1% Temperature Cool (10) Movement Walking (120) Location -9/Materials Parts ------- > --- POWER (1) -------- (None) > --- PROPULSION (3) --- Aluminum Leg > --- UTILITY (3) ------ Improved Utility Shielding Improved Utility Shielding > --- WEAPON (2) ------- Autogun Autogun > --- INVENTORY (5) ---- Light Ion Engine Cooling System Peak State ------------ > --- POWER ------------ Light Ion Engine > --- PROPULSION ------- Aluminum Leg Aluminum Leg Aluminum Leg > --- UTILITY ---------- Improved Heat Sink Small Storage Unit Hacking Suite > --- WEAPON ----------- Autogun Autogun > --- INVENTORY -------- Ion Engine Light Nuclear Core EM Pulse Gun Light Assault Rifle [Rating: 15] Favorites ----------- Power Ion Engine Engine Ion Engine Power Core Light Nuclear Core Propulsion Aluminum Leg Leg Aluminum Leg Utility Small Storage Unit Device Improved Heat Sink Storage Small Storage Unit Hackware Hacking Suite Protection Improved Utility Shielding Weapon Light Assault Rifle Energy Gun EM Pulse Gun Ballistic Gun Light Assault Rifle Build | -11 -10 -9 ------- Run | Yrd Mat Mat Slots Evolved 2 | . . 2 Power . | . . . Propulsion 1 | . . 1 Utility 1 | . . 1 Weapon . | . . . Parts Attached 33 | 6 5 22 Power 7 | 1 1 5 Engine 6 | 1 1 4 Core 1 | . . 1 Reactor . | . . . Propulsion 10 | 2 2 6 Treads . | . . . Leg 10 | 2 2 6 Wheel . | . . . Hover . | . . . Flight . | . . . Utility 5 | 1 1 3 Device 1 | . . 1 Storage 1 | 1 . . Processor . | . . . Hackware 1 | . 1 . Protection 2 | . . 2 Artifact . | . . . Weapon 11 | 2 1 8 Energy Gun 1 | . . 1 Energy Cannon . | . . . Ballistic Gun 10 | 2 1 7 Ballistic Cannon . | . . . Launcher . | . . . Special Weapon . | . . . Impact Weapon . | . . . Slashing Weapon . | . . . Piercing Weapon . | . . . Special Melee Weapon . | . . . Unidentified Prototypes . | . . . Parts Lost 21 | . 3 18 Power 5 | . 1 4 Propulsion 9 | . 2 7 Utility 3 | . . 3 Weapon 4 | . . 4 Highest Loss Streak 6 | . 2 6 To Critical Strikes . | . . . Average Backups 2 | . 3 2 Power 1 | . 1 1 Propulsion . | . . . Utility . | . . . Weapon . | . . . Tool/Special . | . . . Unused Backups 1 | . . 1 Power . | . . . Propulsion . | . . . Utility 1 | . . 1 Weapon . | . . . Tool/Special . | . . . Average Slot Usage (%) 79 | . 93 64 Engine 11 | . 13 9 Leg 22 | . 27 16 Device 1 | . . 3 Storage 9 | . 14 4 Hackware 5 | . 9 2 Protection 3 | . . 8 Ballistic Gun 23 | . 28 18 Peak Build Rating 15 | 6 9 15 Average Rating 8 | 4 7 10 On Entrance 5 | . 6 9 Avg Prop Armor Cover (%) . | . . . Naked Turns . | . . . Heaviest Build 17 | 13 13 17 Greatest Support 30 | 20 20 30 Greatest Overweight (x) 5 | 1 3 5 Average Overweight (x) . | . . . Largest Inventory Capacity 8 | 8 8 8 Average Capacity 7 | 7 8 6 Most Carried 6 | 1 5 6 Average Carried 2 | . 3 2 Final Capacity 8 | 8 8 5 Final Carried 5 | 1 5 2 Class Distribution -------------------- 76% | Mutant 23% | Scavenger-Mutant Dominant Class ---------------- Mutant | -10/Materials Mutant | -9/Materials Resources | -11 -10 -9 ----------- Run | Yrd Mat Mat Matter Collected 751 | 170 176 405 Remotely . | . . . Salvage Created 877 | . 303 574 Parts 63 | . 23 40 Haulers Intercepted . | . . . Recyclers Shooed 1 | . 1 . Parts Field Recycled . | . . . Retrieved Matter . | . . . Parts Self-Destructed . | . . . Prevented . | . . . Parts Restored . | . . . Kills | -11 -10 -9 ------- Run | Yrd Mat Mat Combat Hostiles Destroyed 26 | . 8 18 Guns 26 | . 8 18 Classes Destroyed 6 | . 4 2 Operator 2 | . 1 1 Watcher 1 | . 1 . Swarmer 11 | . 3 8 Grunt 10 | . 5 5 Duelist 1 | . . 1 Sentry 4 | . . 4 Best Kill Streak 5 | . 3 5 Combat Bots Only 5 | . 3 5 Max Kills in Single Turn 2 | . 1 2 Gunslinging 1 | . . 1 Exploded . | . . . Melee . | . . . Uniques/NPCs Destroyed . | . . . Combat | -11 -10 -9 -------- Run | Yrd Mat Mat Hostile Shots Fired 270 | . 65 205 Missed 77 | . 12 65 Hits 193 | . 53 140 Melee 4 | . . 4 Projectile 189 | . 53 136 AOE 1 | . . 1 Critical Strikes 6 | . . 6 Damage Taken 2587 | . 646 1941 Core 505 | . 103 402 Absorbed by Shields . | . . . Core Remaining (%) 79 | 100 58 . Volleys Fired 103 | . 40 63 Largest 2 | . 2 2 Hottest 60 | . 40 60 Shots Fired 201 | . 80 121 Gun 201 | . 80 121 Cannon . | . . . Launcher . | . . . Special . | . . . Kinetic 193 | . 80 113 Thermal . | . . . Explosive . | . . . Electromagnetic 8 | . . 8 Robot Hit Streak 14 | . 7 14 Robot Miss Streak 5 | . 5 4 Penetration Max . | . . . Secondary Targets 4 | . . 4 Max Gunslinging Chain 1 | . . 1 Shots Hit Robots 128 | . 47 81 Core Hits 52 | . 21 31 Critical Kills . | . . . Critical Parts Destroyed . | . . . Critical Strikes . | . . . Melee Attacks . | . . . Impact . | . . . Slashing . | . . . Piercing . | . . . Sneak Attacks . | . . . Combat Hostiles . | . . . Follow-up Attacks . | . . . Damage Inflicted 1752 | . 456 1296 Guns 1750 | . 456 1294 Cannons . | . . . Explosions . | . . . Melee . | . . . Ramming 2 | . . 2 Kinetic 1668 | . 456 1212 Thermal . | . . . Explosive . | . . . Electromagnetic 82 | . . 82 Impact . | . . . Slashing . | . . . Piercing . | . . . Highest Corruption 1 | . . 1 Average Corruption 1 | . . 1 Corruption Purged . | . . . Corruption Blocked . | . . . Effects 4 | . . 4 Energy Discharges 2 | . . 2 Parts Rejected 1 | . . 1 Data Loss (minor) 1 | . . 1 Overload Shots . | . . . Overflow Damage . | . . . Projectiles . | . . . Explosions . | . . . Melee . | . . . Knockbacks . | . . . Impact . | . . . Kinetic . | . . . Secondary . | . . . Self-Inflicted Damage . | . . . Shots . | . . . Rammed . | . . . Targets Rammed 2 | . . 2 Kicked 2 | . . 2 Crushed . | . . . Highest Temperature 75 | . 18 75 Average Temperature 15 | . 9 23 Received Heat Transfer 963 | . 303 660 Siege Activations . | . . . Martial Activations . | . . . Shielding Activations . | . . . Robots Disrupted . | . . . Combat Hostiles . | . . . Robots Corrupted . | . . . Combat Hostiles . | . . . Parts Fried . | . . . Impact Corruptions . | . . . Robots Melted . | . . . Combat Hostiles . | . . . Parts Melted . | . . . Heat Transferred . | . . . Parts Sabotaged . | . . . Parts Stolen . | . . . Parts Stripped . | . . . Power Chain Reactions . | . . . Alert | -11 -10 -9 ------- Run | Yrd Mat Mat Maximum Alert Level . | . . . Low Security (%) 100 | 100 100 100 Level 1 . | . . . Level 2 . | . . . Level 3 . | . . . Level 4 . | . . . Level 5 . | . . . High Security . | . . . Max Security . | . . . Peak Influence 152 | . 70 152 Initial 9 | . . 9 Average 33 | . 16 54 Influence Increases 766 | . 263 503 Destroy 0b10 Robot/C 520 | . 160 360 Destroy 0b10 Robot/NC 15 | . 10 5 Destroy Leader 132 | . 42 90 Successful Hack 37 | . 21 16 Destroy Structure 2 | . . 2 Lose Combat Pursuer 60 | . 30 30 Influence Decreases 678 | . 241 437 Entered New Map 13 | . . 13 Time Decay 522 | . 225 297 Lost Part 143 | . 16 127 Squads Dispatched 2 | . 1 1 Investigation 1 | . 1 . Extermination . | . . . Reinforcement 1 | . . 1 Assault . | . . . Garrison . | . . . Intercept . | . . . Searches Triggered . | . . . Construction Impeded . | . . . Haulers Reinforced . | . . . Active Scanning Responses . | . . . Cargo Convoy Interrupts . | . . . Stealth | -11 -10 -9 --------- Run | Yrd Mat Mat Distress Signals 4 | . 1 3 Communications Jammed . | . . . Distress Signals . | . . . Times Spotted 50 | . 21 29 Peak Tracking Total 6 | . 3 6 Tactical Retreats 4 | . 2 2 Traps | -11 -10 -9 ------- Run | Yrd Mat Mat Traps Triggered . | . . . Indirectly . | . . . Trap Hack Attempts . | . . . Triggered . | . . . Disarmed 1 | . 1 . Reprogrammed . | . . . Reused . | . . . Traps Extracted . | . . . Installed . | . . . Triggered . | . . . Machines | -11 -10 -9 ---------- Run | Yrd Mat Mat Machines Disabled . | . . . Max in Single Turn . | . . . Machines Repaired . | . . . Machines Dismantled . | . . . Machines Sabotaged . | . . . Overloaded Fab Kills . | . . . Hacking | -11 -10 -9 --------- Run | Yrd Mat Mat Machines Accessed 8 | . 6 2 Terminals 7 | . 5 2 Fabricators . | . . . Repair Stations 1 | . 1 . Recycling Units . | . . . Scanalyzers . | . . . Garrison Access . | . . . Total Hacks 22 | . 13 9 Successful 11 | . 6 5 Failed 11 | . 7 4 Catastrophic 3 | . 3 . Database Lockouts . | . . . Manual 21 | . 12 9 Terminals 20 | . 11 9 Fabricators . | . . . Repair Stations 2 | . 2 . Recycling Units . | . . . Scanalyzers . | . . . Garrison Access . | . . . Terminal Hacks 5 | . 3 2 Robot Analysis 3 | . 1 2 Locate Traps 1 | . 1 . Disarm Traps 1 | . 1 . Fabricator Hacks . | . . . Repair Station Hacks 1 | . 1 . Scan Component 1 | . 1 . Recycling Unit Hacks . | . . . Scanalyzer . | . . . Garrison Access Hacks . | . . . Unauthorized Hacks 5 | . 2 3 Terminals 5 | . 2 3 Assimilate 3 | . 1 2 Operators 2 | . 1 1 Fabricators . | . . . Repair Stations . | . . . Recycling Units . | . . . Scanalyzers . | . . . Garrison Access . | . . . Data Cores Recovered . | . . . Used . | . . . Hacking Detections 6 | . 4 2 Full Trace Events 2 | . 2 . Feedback Events . | . . . Feedback Blocked . | . . . Robot Schematics Acquired . | . . . Robots Built . | . . . Authchips . | . . . Time . | . . . Total Robot Build Rating . | . . . Part Schematics Acquired . | . . . Parts Built . | . . . Authchips . | . . . Time . | . . . Total Part Build Rating . | . . . Part Studies Acquired . | . . . Parts Repaired . | . . . Time . | . . . Parts Recycled . | . . . Recycled Matter . | . . . Retrieved Matter . | . . . Retrieved Components . | . . . Parts Scanalyzed . | . . . Part Schematics Acquired . | . . . Parts Damaged . | . . . Bothacking | -11 -10 -9 ------------ Run | Yrd Mat Mat Used RIF Installer . | . . . Robots Hacked . | . . . Non-combat . | . . . Combat . | . . . Robot Hacks Applied . | . . . Relay Couplers Released . | . . . Fabnet Peak Effective % . | . . . Robots Rewired . | . . . Allies Hacked . | . . . Hacks Repelled . | . . . Allies | -11 -10 -9 -------- Run | Yrd Mat Mat Total Allies . | . . . Largest Group . | . . . Highest-Rated Group . | . . . Highest-Rated Ally . | . . . Total Orders . | . . . Ally Attacks . | . . . Total Damage . | . . . Kills . | . . . Allies Corrupted . | . . . Allies Melted . | . . . Intel | -11 -10 -9 ------- Run | Yrd Mat Mat Active Infowar (turns) . | . . . Robot Analysis Total 3 | . 1 2 Derelict Logs Recovered . | . . . Drone Launches . | . . . Drone Recoveries . | . . . Exploration | -11 -10 -9 ------------- Run | Yrd Mat Mat Turns Passed 1831 | 82 915 834 Spaces Moved 1041 | 63 595 383 Core 35 | 7 2 26 Treads . | . . . Legs 1006 | 56 593 357 Wheels . | . . . Hover . | . . . Flight . | . . . Fastest Speed 50 | 50 120 100 Average Speed 130 | 116 120 149 Slowest Speed 300 | 120 200 300 Overloaded Moves . | . . . Propulsion Burnouts . | . . . Robots Hopped . | . . . Potential Cave-ins . | . . . Cave-ins Triggered . | . . . Exploration Rate (%) 37 | 4 87 22 Regions Visited 2 Branch Regions . Pre-discovered Areas . | . . . Known Exits Taken . | . . . Unknown Exits Taken 2 | 1 1 . Scrap Searched . | . . . Spaces Dug . | . . . Terrain Destroyed . | . . . Melee . | . . . Projectile . | . . . AOE . | . . . Terrain Rammed . | . . . Walls Destroyed . | . . . Machines Disabled . | . . . Actions | -11 -10 -9 --------- Run | Yrd Mat Mat Total 1337 | 69 725 543 Wait 121 | . 77 44 Move 1039 | 62 594 383 Hop . | . . . Pick Up 15 | 1 8 6 Fast Attach 23 | 6 1 16 Attach 13 | . 3 10 Detach 7 | . . 7 Swap 4 | . 1 3 Drop 10 | . 1 9 Fire 103 | . 40 63 Melee . | . . . Ram . | . . . Kick 2 | . . 2 Crush . | . . . Escape Stasis . | . . . Rewire . | . . . Trap . | . . . Miscellaneous . | . . . Route ------- -11/Scrapyard -10/Materials (discovered 5 exits: *Mat x3 / [*Min x2]) -9/Materials (discovered 1 exit: [*Mat]) History --------- Turn | Location | Event 13 | -11/Scrapyard | Discovered new exit (range 16) 83 | -11/Scrapyard | Entered Materials 312 | -10/Materials | Build established: Mutant 342 | -10/Materials | Discovered new exit (range 14) 444 | -10/Materials | Discovered new exit (range 11) 602 | -10/Materials | Discovered new exit (range 16) 683 | -10/Materials | Derelicts attacked the area 755 | -10/Materials | Discovered new exit (range 9) 948 | -10/Materials | Discovered new exit (range 12) 998 | -10/Materials | Entered another Materials area 998 | -9/Materials | Evolved 2 slots: Propulsion x1, Utility x1 1129 | -9/Materials | Build established: Scavenger-Mutant 1296 | -9/Materials | Lost 6 parts (3n1u2w) 1352 | -9/Materials | Core integrity fell below 50% 1382 | -9/Materials | Lost 5 parts (1p1n1u2w) 1552 | -9/Materials | Build established: Mutant 1609 | -9/Materials | Core integrity fell below 20% 1758 | -9/Materials | Discovered new exit (range 16) 1832 | -9/Materials | Destroyed by Y-45 Defender with Beam Rifle Last Messages --------------- K-01 Serf collects debris. K-01 Serf cleans the Material Compactor. R-06 Scavenger collects Imp. Ion Engine. K-01 Serf cleans the Material Compactor. R-06 Scavenger collects Heat Sink. K-01 Serf cleans the Material Compactor. R-06 Scavenger collects Lgt. Armor Plating. K-01 Serf cleans the Material Compactor. R-06 Scavenger collects Hvy. Assault Rifle. K-01 Serf cleans the Material Compactor. K-01 Serf cleans the TF Node. K-01 Serf cleans the Material Compactor. EXIT=FOUND System corrupted: Component data lost. K-01 Serf cleans the TF Node. W-16 Scout sends out distress signal. System corrupted: Energy discharge (-87). Ion Engine destroyed. Kicked A-02 Transporter out of the way. Kicked A-02 Transporter. Map ----- +----------------------------------------------------+ | | | | | ?????????????????????????????????????????????????? | | ?????????????????????????????????????????????????? | | ?????????????????????????????????????????????????? | | ?????????????????????????????????????????????????? | | ?????????????????????????????????????????????????? | | ?????????????????????????????????????????????????? | | ?????????????????????????????????????????????????? | | ?????????????????????????????????????????????????? | | ?????????????????????????????????????????????????? | | ?????????????? ????????????????????????????????? | | ?????????????# < ????????????????????????????????? | | ?????????????# ????????????????????????????????? | | ?????????????+ ????????????????????????????????? | | ?????????????# ????????????????????????????????? | | ?????????????# ????????????????????????????????? | | ?????????????# #???????????????????????????????? | | ?????????????# #???????????????????????????????? | | ?????????????# #???????????????????????????????? | | ?????????????# #???????????????????????????????? | | ?????????????# #????????????#######????????????? | | ?????????????# #???????###### #######+?????? | | ?????????????# #???????# ??? | | ????????????## ######### " ??? | | ????????????# a a @ Y ??? | | ????????????# ##### ### #######+##???? | | ????????????# " #???# #?###+###????????????? | | ????????????# #???# #????????????????????? | | ????????????# #???# #????????????????????? | | ?????????######+####### #????????????????????? | | ?????????# ## #????????????????????? | | ?????????# """ ## #????????????????????? | | ????????## """"" ## #????????????????????? | | ????????# """"" ## #????????????????????? | | ????????## """"" ## #????????????????????? | | ?????????# """ ## #????????????????????? | | ?????????# % = ## #????????????????????? | | ?????????#########/##########????????????????????? | | ?????????????????# #?????????????????????????????? | | ?????????????????# #????????##########???????????? | | ?????????????????# #????????# #???????????? | | ???????????? ????# #????????# #???????????? | | ??????????? ????# #????????# #???????????? | | ??????????# ???# #????????# #???????????? | | ??????????# ???# ########## #???????????? | | ??????????# ???# + #???????????? | | ??????????# ???# ### # #???????????? | | ??????????# #?## #?# # #???????????? | | ??????????# #?# #?# % + #???????????? | +----------------------------------------------------+ Best States ------------- Heat Dissipation 42 Energy Generation 14 Energy Capacity 265 Matter Stores 232 Matter Capacity 300 Sight Range 16 Terrain Scan Density 10 Utility Shielding 66 Evasion (%) 55 Offensive Hacking 10 Item Schematics ----------------- None Robot Schematics ------------------ None Fabricated ------------ Nothing Repaired ---------- Nothing Studied --------- None Alien Tech Used ----------------- None Achievements -------------- Armchair Analyst Challenges ------------ None Game ------ Seed BottomlessFlyingInverter Manual? 0 Play Time 00:35:32 Cumulative 34.7 hours Start 2026.03.27 @ 19:18:00 End 2026.03.27 @ 20:38:02 Sessions 1 Manual Loads 0 Difficulty Rogue Special Mode None Game No. 92 Rogue 90 Adventurer 2 Explorer 0 Win Type - Total 0 Types 0/0/0/0/0/0/0/0/0/0 Lore% 7 Gallery% 20 Achievement% 17 Wizard Run 0 Options --------- Layout 1 ASCII 0 Keyboard 1 Movement Numpad Keybinds 0 Fullscreen 2 Font 32/SmallcapsGlow Map View 50x35 Zoom Use 0% Tactical HUD 0 Map Filters NONE Filters NONE Steam 1 RUN: db39dc06-d324-45c3-9a45-946286a8ca35